[Event "13th Senioren-Cup Tegernsee 2025"]
[Site "Rottach-Egern"]
[Date "2025.03.30"]
[Round "2.10"]
[White "Schwarz, Arnd-Ruediger"]
[Black "Wimmer, Alfred"]
[Result "1/2-1/2"]
[Annotator "RC"]
[ECO "A42"]
[WhiteElo "2120"]
[BlackElo "1972"]
[PlyCount "78"]
[EventDate "2025.03.25"]
[EventType "swiss"]
[EventCountry "GER"]
[SourceTitle "playchess.com"]
[Source "ChessBase"]
[SourceQuality "1"]
[TimeControl "9000+30"]

1. d4 {[%emt 0:20:06]} d6 {[%emt 0:20:12]} 2. Nf3 {[%emt 0:00:09]} Nf6 {[%emt 0:00:11]} 3. c4 {[%emt 0:00:06]} g6 {[%emt 0:00:31]} 4. Nc3 {[%emt 0:00:06]} Bg7 {[%emt 0:00:09]} 5. e4 {[%emt 0:00:08]} Bg4 {[%emt 0:00:40]} 6. Be2 {[%emt 0:00:12]} Bxf3 {[%emt 0:01:18]} 7. Bxf3 {[%emt 0:00:07]} e5 {[%emt 0:00:11]} 8. Be3 {[%emt 0:01:27]} Nc6 {[%emt 0:01:03]} 9. d5 {[%emt 0:00:15]} Nd4 {[%emt 0:00:41]} 10. Bxd4 {[%emt 0:04:28]} exd4 {[%emt 0:00:07]} 11. Qxd4 {[%emt 0:00:21]} O-O {[%emt 0:00:30]} 12. O-O {[%emt 0:00:37]} Re8 {[%emt 0:01:33]} 13. Qd2 {[%emt 0:00:56]} Nd7 {[%emt 0:04:24]} 14. g3 {[%emt 0:13:03]} Nc5 {[%emt 0:09:27]} 15. Rae1 {[%emt 0:03:36]} Qf6 {[%emt 0:06:40]} 16. Bg2 {[%emt 0:00:07]} a6 {[%emt 0:00:23]} 17. Nd1 {[%emt 0:16:12]} b5 {[%emt 0:06:29]} 18. b4 {[%emt 0:02:37]} Nd7 {[%emt 0:08:04]} 19. c5 {[%emt 0:04:41]} Qd4 {[%emt 0:10:18]} 20. Qxd4 {[%emt 0:13:20]} Bxd4 {[%emt 0:00:09]} 21. cxd6 {[%emt 0:00:53]} cxd6 {[%emt 0:00:21]} 22. Ne3 {[%emt 0:01:40]} Ne5 {[%emt 0:08:06]} 23. Nc2 {[%emt 0:00:45]} Bb6 {[%emt 0:10:23]} 24. Rc1 {[%emt 0:11:26]} Nc4 {[%emt 0:11:30]} 25. Rfe1 {[%emt 0:12:12]} Rac8 {[%emt 0:11:52]} 26. Bh3 {[%emt 0:04:50]} Rc7 {[%emt 0:00:55]} 27. Na1 {[%emt 0:01:35]} Rce7 {[%emt 0:02:36]} 28. Bg2 {[%emt 0:00:35]} f5 {[%emt 0:00:24]} 29. Nb3 {[%emt 0:00:51]} fxe4 {[%emt 0:06:17]} 30. Bh3 {[%emt 0:00:07]} e3 {[%emt 0:00:19]} 31. f4 {[%emt 0:00:06]} Rc7 {[%emt 0:15:14]} 32. Be6+ {[%emt 0:00:53]} Kg7 {[%emt 0:02:08]} 33. Kg2 {[%emt 0:00:54]} Ree7 {[%emt 0:00:46]} 34. g4 {[%emt 0:01:26]} Nb2 {[%emt 0:03:44]} 35. Rxc7 {[%emt 0:06:17]} Rxc7 {[%emt 0:00:38]} 36. Rc1 {[%emt 0:00:05]} Nd3 {[%emt 0:01:36]} 37. Rxc7+ {[%emt 0:01:47]} Bxc7 {[%emt 0:00:06]} 38. Kf3 {[%emt 0:00:41]} Nxb4 {[%emt 0:00:56]} 39. Bc8 {[%emt 0:00:14]} Nxa2 {[%emt 0:00:59]} 1/2-1/2